[Event "*** Titled Tuesday 3|2 Blitz"]
[Site "Chess.com"]
[Date "2017.03.07"]
[Round "5"]
[White "Mepetmepe"]
[Black "Tirantes"]
[Result "0-1"]
[WhiteElo "2320"]
[BlackElo "2213"]
[TimeControl "180+2"]
[EndTime "14:10:07 PST"]
[Termination "Tirantes won on time"]

1. Nf3 {[%clk 0:03:02]} 1... d5 {[%clk 0:02:58.4]} 2. d4 {[%clk 0:03:01.8]} 2...
e6 {[%clk 0:02:57.3]} 3. c4 {[%clk 0:03:03.2]} 3... Nf6 {[%clk 0:02:57.2]} 4. g3
{[%clk 0:03:04.5]} 4... Bb4+ {[%clk 0:02:56.5]} 5. Bd2 {[%clk 0:03:05.8]} 5...
Bd6 {[%clk 0:02:56.6]} 6. Bg2 {[%clk 0:03:07.6]} 6... c6 {[%clk 0:02:53.3]} 7.
O-O {[%clk 0:03:08]} 7... Nbd7 {[%clk 0:02:52.5]} 8. Nc3 {[%clk 0:03:05.6]} 8...
O-O {[%clk 0:02:48.9]} 9. Qc2 {[%clk 0:03:01]} 9... dxc4 {[%clk 0:02:48.4]} 10.
e4 {[%clk 0:03:00.9]} 10... e5 {[%clk 0:02:48.7]} 11. a4 {[%clk 0:02:53.5]}
11... Qe7 {[%clk 0:02:43.6]} 12. a5 {[%clk 0:02:50.4]} 12... Rd8 {[%clk
0:02:35.8]} 13. Rfe1 {[%clk 0:02:50.9]} 13... exd4 {[%clk 0:02:23]} 14. Nxd4
{[%clk 0:02:49.3]} 14... Ne5 {[%clk 0:02:22.7]} 15. Nf3 {[%clk 0:02:03.6]} 15...
Nd3 {[%clk 0:02:06.5]} 16. e5 {[%clk 0:01:58]} 16... Nxe1 {[%clk 0:01:35.1]} 17.
Rxe1 {[%clk 0:01:57.2]} 17... Bg4 {[%clk 0:01:23.2]} 18. exd6 {[%clk 0:01:36.8]}
18... Qxd6 {[%clk 0:01:19.8]} 19. Bf4 {[%clk 0:01:38.1]} 19... Qd3 {[%clk
0:01:14.7]} 20. Qe2 {[%clk 0:01:26.3]} 20... Re8 {[%clk 0:01:05.2]} 21. Be3
{[%clk 0:01:21]} 21... Qxe2 {[%clk 0:00:59.6]} 22. Rxe2 {[%clk 0:01:07.5]} 22...
Nd5 {[%clk 0:00:59.6]} 23. Bd4 {[%clk 0:00:49.3]} 23... Nxc3 {[%clk 0:00:52.9]}
24. Rxe8+ {[%clk 0:00:49]} 24... Rxe8 {[%clk 0:00:53.6]} 25. Bxc3 {[%clk
0:00:50.9]} 25... Rd8 {[%clk 0:00:44.3]} 26. h3 {[%clk 0:00:42.5]} 26... Rd1+
{[%clk 0:00:43.7]} 27. Kh2 {[%clk 0:00:43.8]} 27... Be6 {[%clk 0:00:42.9]} 28.
Ne5 {[%clk 0:00:32.9]} 28... Bd5 {[%clk 0:00:42.3]} 29. Bf3 {[%clk 0:00:29.4]}
29... Rb1 {[%clk 0:00:32.3]} 30. Kg2 {[%clk 0:00:28.3]} 30... f6 {[%clk
0:00:32]} 31. Nd7 {[%clk 0:00:26.4]} 31... Kf7 {[%clk 0:00:26.9]} 32. Nc5 {[%clk
0:00:21.7]} 32... b6 {[%clk 0:00:26.9]} 33. Ne4 {[%clk 0:00:15.3]} 33... bxa5
{[%clk 0:00:20.9]} 34. Nd2 {[%clk 0:00:12.1]} 34... Bxf3+ {[%clk 0:00:21.1]} 35.
Kxf3 {[%clk 0:00:12.6]} 35... Rc1 {[%clk 0:00:21.2]} 36. Bxa5 {[%clk 0:00:13.1]}
36... Rc2 {[%clk 0:00:21.3]} 37. Bc3 {[%clk 0:00:13.5]} 37... Ke6 {[%clk
0:00:20.2]} 38. Nxc4 {[%clk 0:00:14.8]} 38... Rc1 {[%clk 0:00:16.3]} 39. Ke3
{[%clk 0:00:13.6]} 39... h5 {[%clk 0:00:16.9]} 40. h4 {[%clk 0:00:14.9]} 40...
g5 {[%clk 0:00:16.8]} 41. Nd2 {[%clk 0:00:14.1]} 41... Rh1 {[%clk 0:00:16.2]}
42. Nf3 {[%clk 0:00:14.3]} 42... Kf5 {[%clk 0:00:16.6]} 43. Nd4+ {[%clk
0:00:11]} 43... Kg4 {[%clk 0:00:15.6]} 44. hxg5 {[%clk 0:00:12.9]} 44... fxg5
{[%clk 0:00:16.2]} 45. Nxc6 {[%clk 0:00:14.8]} 45... h4 {[%clk 0:00:17.1]} 46.
Ne5+ {[%clk 0:00:16.7]} 46... Kf5 {[%clk 0:00:17.4]} 47. gxh4 {[%clk 0:00:16.3]}
47... gxh4 {[%clk 0:00:17.9]} 48. Kf3 {[%clk 0:00:16.4]} 48... Rg1 {[%clk
0:00:16.6]} 49. Ng4 {[%clk 0:00:14.2]} 49... Rxg4 {[%clk 0:00:16.1]} 0-1

[Event "*** Titled Tuesday 3|2 Blitz"]
[Site "Chess.com"]
[Date "2017.03.07"]
[Round "5"]
[White "GMMarcinDziuba"]
[Black "ZapataCharlesS"]
[Result "0-1"]
[WhiteElo "2464"]
[BlackElo "2643"]
[TimeControl "180+2"]
[EndTime "14:10:29 PST"]
[Termination "ZapataCharlesS won on time"]

1. d4 {[%clk 0:02:58.5]} 1... Nf6 {[%clk 0:02:47.7]} 2. c4 {[%clk 0:02:59.5]}
2... e5 {[%clk 0:02:47.8]} 3. dxe5 {[%clk 0:02:59.1]} 3... Ne4 {[%clk
0:02:49.1]} 4. Nc3 {[%clk 0:02:51.2]} 4... Nxc3 {[%clk 0:02:45.3]} 5. bxc3
{[%clk 0:02:52.2]} 5... Qe7 {[%clk 0:02:38.4]} 6. Nf3 {[%clk 0:02:52.9]} 6...
Nc6 {[%clk 0:02:39.8]} 7. Bg5 {[%clk 0:02:39.5]} 7... Qc5 {[%clk 0:02:22.5]} 8.
Qd5 {[%clk 0:02:29]} 8... h6 {[%clk 0:02:17.8]} 9. Bf4 {[%clk 0:02:22.4]} 9...
g5 {[%clk 0:02:14.5]} 10. Bg3 {[%clk 0:02:17.6]} 10... Qa3 {[%clk 0:02:10.5]}
11. Qd2 {[%clk 0:02:11.7]} 11... Bg7 {[%clk 0:02:04.2]} 12. e3 {[%clk 0:02:13]}
12... d6 {[%clk 0:02:02.1]} 13. Nd4 {[%clk 0:02:03.6]} 13... Nxe5 {[%clk
0:01:57.7]} 14. Be2 {[%clk 0:02:02.7]} 14... O-O {[%clk 0:01:56.2]} 15. O-O
{[%clk 0:02:00.4]} 15... Nd7 {[%clk 0:01:42]} 16. f4 {[%clk 0:01:47.2]} 16...
Nc5 {[%clk 0:01:24.4]} 17. Bd3 {[%clk 0:01:43.5]} 17... Nxd3 {[%clk 0:01:19]}
18. Qxd3 {[%clk 0:01:44.6]} 18... Bd7 {[%clk 0:01:19.6]} 19. fxg5 {[%clk
0:01:31.7]} 19... hxg5 {[%clk 0:01:21.5]} 20. h4 {[%clk 0:01:13.6]} 20... Rae8
{[%clk 0:01:08.5]} 21. hxg5 {[%clk 0:01:11.8]} 21... Qc5 {[%clk 0:01:09.7]} 22.
Bf4 {[%clk 0:01:04.2]} 22... f5 {[%clk 0:00:51.2]} 23. Rae1 {[%clk 0:00:56.9]}
23... Re4 {[%clk 0:00:47.9]} 24. Qe2 {[%clk 0:00:52.3]} 24... Be8 {[%clk
0:00:45.4]} 25. g4 {[%clk 0:00:39.6]} 25... fxg4 {[%clk 0:00:34.4]} 26. Qxg4
{[%clk 0:00:41.5]} 26... Qxc4 {[%clk 0:00:36]} 27. Qg2 {[%clk 0:00:31.3]} 27...
d5 {[%clk 0:00:33.4]} 28. Bg3 {[%clk 0:00:18]} 28... Rxf1+ {[%clk 0:00:25.8]}
29. Rxf1 {[%clk 0:00:19.9]} 29... Bg6 {[%clk 0:00:27.5]} 30. Qh3 {[%clk
0:00:18.1]} 30... Rxe3 {[%clk 0:00:20.1]} 31. Qc8+ {[%clk 0:00:19]} 31... Re8
{[%clk 0:00:21.1]} 32. Qg4 {[%clk 0:00:20]} 32... c5 {[%clk 0:00:19.6]} 33. Rf6
{[%clk 0:00:13.2]} 33... Bxf6 {[%clk 0:00:13.8]} 34. gxf6 {[%clk 0:00:14.2]}
34... Qd3 {[%clk 0:00:15.7]} 35. Nf3 {[%clk 0:00:07.3]} 35... Qd1+ {[%clk
0:00:13]} 36. Kh2 {[%clk 0:00:05.6]} 36... Re2+ {[%clk 0:00:13.8]} 37. Kh3
{[%clk 0:00:07.1]} 37... Qh1+ {[%clk 0:00:11.8]} 38. Bh2 {[%clk 0:00:07.5]}
38... Qf1+ {[%clk 0:00:12.2]} 39. Kh4 {[%clk 0:00:08.9]} 39... Rxh2+ {[%clk
0:00:10.2]} 40. Nxh2 {[%clk 0:00:09.5]} 40... Qxf6+ {[%clk 0:00:12.1]} 41. Kg3
{[%clk 0:00:08.9]} 41... Qxc3+ {[%clk 0:00:12]} 42. Nf3 {[%clk 0:00:10]} 42...
Qg7 {[%clk 0:00:12.6]} 43. Qc8+ {[%clk 0:00:10]} 43... Kh7 {[%clk 0:00:12.8]}
44. Qxc5 {[%clk 0:00:09.4]} 44... Be4+ {[%clk 0:00:13.2]} 45. Kf2 {[%clk
0:00:10.2]} 45... Qf7 {[%clk 0:00:12.5]} 46. Qe3 {[%clk 0:00:02.7]} 46... Bxf3
{[%clk 0:00:11.1]} 47. Qxf3 {[%clk 0:00:03.9]} 47... Kg7 {[%clk 0:00:13]} 48.
Ke3 {[%clk 0:00:04.7]} 48... Qxf3+ {[%clk 0:00:14]} 0-1

[Event "*** Titled Tuesday 3|2 Blitz"]
[Site "Chess.com"]
[Date "2017.03.07"]
[Round "5"]
[White "manubibi"]
[Black "Cayse"]
[Result "0-1"]
[WhiteElo "2388"]
[BlackElo "2558"]
[TimeControl "180+2"]
[EndTime "14:10:31 PST"]
[Termination "Cayse won by resignation"]

1. e4 {[%clk 0:03:02]} 1... e5 {[%clk 0:03:00.2]} 2. Nf3 {[%clk 0:03:02.4]} 2...
Nc6 {[%clk 0:03:00.7]} 3. Bb5 {[%clk 0:03:02.2]} 3... a6 {[%clk 0:03:01.3]} 4.
Ba4 {[%clk 0:03:02.7]} 4... Nf6 {[%clk 0:03:01.7]} 5. O-O {[%clk 0:03:02.5]}
5... Be7 {[%clk 0:03:01.8]} 6. Re1 {[%clk 0:03:02.2]} 6... b5 {[%clk 0:03:01.8]}
7. Bb3 {[%clk 0:03:03.4]} 7... O-O {[%clk 0:03:02.9]} 8. a4 {[%clk 0:02:59.8]}
8... b4 {[%clk 0:03:03.4]} 9. d3 {[%clk 0:02:59.9]} 9... d6 {[%clk 0:03:03.3]}
10. a5 {[%clk 0:02:58.5]} 10... Rb8 {[%clk 0:03:01.8]} 11. Nbd2 {[%clk
0:02:56.8]} 11... Be6 {[%clk 0:02:56.5]} 12. Bc4 {[%clk 0:02:57]} 12... Qc8
{[%clk 0:02:55.3]} 13. Nf1 {[%clk 0:02:53.6]} 13... Bg4 {[%clk 0:02:42.6]} 14.
Ne3 {[%clk 0:02:52.5]} 14... Nd4 {[%clk 0:02:34.4]} 15. Nxg4 {[%clk 0:02:51.4]}
15... Nxg4 {[%clk 0:02:35.8]} 16. Nxd4 {[%clk 0:02:42.5]} 16... exd4 {[%clk
0:02:36.1]} 17. Bxa6 {[%clk 0:02:22.4]} 17... Qxa6 {[%clk 0:02:35.8]} 18. Qxg4
{[%clk 0:02:22.9]} 18... Rb5 {[%clk 0:02:36.9]} 19. Qd7 {[%clk 0:02:06.2]} 19...
Bd8 {[%clk 0:02:37]} 20. b3 {[%clk 0:01:39.9]} 20... Rxa5 {[%clk 0:02:35]} 21.
Bb2 {[%clk 0:01:40.4]} 21... Rxa1 {[%clk 0:02:07.3]} 22. Rxa1 {[%clk 0:01:39.7]}
22... Qb6 {[%clk 0:02:08.7]} 23. g3 {[%clk 0:00:34.8]} 23... g6 {[%clk
0:02:05.5]} 24. Ra8 {[%clk 0:00:19.9]} 24... Bf6 {[%clk 0:02:05]} 25. Rxf8+
{[%clk 0:00:17.1]} 25... Kxf8 {[%clk 0:02:05.7]} 26. Bc1 {[%clk 0:00:16.3]}
26... Kg7 {[%clk 0:02:06.3]} 27. Qh3 {[%clk 0:00:17.2]} 27... h5 {[%clk
0:02:05.3]} 28. g4 {[%clk 0:00:18.5]} 28... Qc5 {[%clk 0:01:57.5]} 29. gxh5
{[%clk 0:00:19.7]} 29... Qxc2 {[%clk 0:01:58.1]} 30. h6+ {[%clk 0:00:18.6]}
30... Kh7 {[%clk 0:01:57.1]} 31. Bf4 {[%clk 0:00:20.2]} 31... Qxb3 {[%clk
0:01:56.5]} 32. Qd7 {[%clk 0:00:20.3]} 32... Be5 {[%clk 0:01:45.9]} 33. Bxe5
{[%clk 0:00:15.1]} 33... dxe5 {[%clk 0:01:46.3]} 34. Qxc7 {[%clk 0:00:16.7]}
34... Qe6 {[%clk 0:01:40]} 35. Qd8 {[%clk 0:00:16.1]} 35... b3 {[%clk
0:01:27.5]} 36. Qf8 {[%clk 0:00:12.8]} 36... Qf6 {[%clk 0:01:28.2]} 37. h4
{[%clk 0:00:12]} 37... b2 {[%clk 0:00:49.3]} 38. Qb4 {[%clk 0:00:10.8]} 38...
Qf3 {[%clk 0:00:41.9]} 39. Qxb2 {[%clk 0:00:11.5]} 39... Qxd3 {[%clk 0:00:42.8]}
40. Qb7 {[%clk 0:00:12.5]} 40... Qd1+ {[%clk 0:00:43.2]} 41. Kh2 {[%clk
0:00:12.7]} 41... Qf3 {[%clk 0:00:44.2]} 42. Kg1 {[%clk 0:00:11.8]} 42... d3
{[%clk 0:00:42.6]} 43. Qd5 {[%clk 0:00:13.3]} 43... Kxh6 {[%clk 0:00:42.6]} 44.
Qxe5 {[%clk 0:00:14.1]} 44... f6 {[%clk 0:00:36.4]} 45. Qd6 {[%clk 0:00:12.1]}
45... Kh5 {[%clk 0:00:32.1]} 46. e5 {[%clk 0:00:08.2]} 46... Qg4+ {[%clk
0:00:18.6]} 47. Kf1 {[%clk 0:00:08.5]} 47... Qe2+ {[%clk 0:00:19.7]} 48. Kg1
{[%clk 0:00:09.5]} 48... fxe5 {[%clk 0:00:21.1]} 49. Qf6 {[%clk 0:00:08.4]}
49... Qg4+ {[%clk 0:00:21.8]} 50. Kf1 {[%clk 0:00:09.6]} 50... Qf5 {[%clk
0:00:21.6]} 51. Qh8+ {[%clk 0:00:08.5]} 51... Kg4 {[%clk 0:00:22.2]} 52. Kg2
{[%clk 0:00:09.7]} 52... d2 {[%clk 0:00:19.7]} 53. Qa8 {[%clk 0:00:05.8]} 53...
d1=Q {[%clk 0:00:15.6]} 54. f3+ {[%clk 0:00:07.1]} 54... Qdxf3+ {[%clk 0:00:16]}
55. Qxf3+ {[%clk 0:00:06.7]} 55... Qxf3+ {[%clk 0:00:17.4]} 0-1

[Event "*** Titled Tuesday 3|2 Blitz"]
[Site "Chess.com"]
[Date "2017.03.07"]
[Round "5"]
[White "SwiftyMcBishop"]
[Black "Vrolijk"]
[Result "1-0"]
[WhiteElo "2202"]
[BlackElo "2311"]
[TimeControl "180+2"]
[EndTime "14:11:05 PST"]
[Termination "SwiftyMcBishop won by resignation"]

1. e4 {[%clk 0:03:02]} 1... e6 {[%clk 0:02:57.9]} 2. d4 {[%clk 0:03:02.5]} 2...
d5 {[%clk 0:02:58.9]} 3. Nc3 {[%clk 0:03:03.2]} 3... Nf6 {[%clk 0:02:57.7]} 4.
Bg5 {[%clk 0:03:02.6]} 4... Bb4 {[%clk 0:02:56.8]} 5. e5 {[%clk 0:03:01]} 5...
h6 {[%clk 0:02:57.5]} 6. Bd2 {[%clk 0:02:57.3]} 6... Bxc3 {[%clk 0:02:57.7]} 7.
Bxc3 {[%clk 0:02:57.2]} 7... Ne4 {[%clk 0:02:58.3]} 8. Bd3 {[%clk 0:02:55.7]}
8... Nxc3 {[%clk 0:02:51.3]} 9. bxc3 {[%clk 0:02:57.6]} 9... c5 {[%clk
0:02:52.8]} 10. Nf3 {[%clk 0:02:54.6]} 10... Nc6 {[%clk 0:02:50.7]} 11. O-O
{[%clk 0:02:48.6]} 11... Qa5 {[%clk 0:02:41.2]} 12. c4 {[%clk 0:02:44.9]} 12...
cxd4 {[%clk 0:02:37.1]} 13. cxd5 {[%clk 0:02:43.8]} 13... Qxd5 {[%clk 0:02:39]}
14. Qe2 {[%clk 0:02:40.7]} 14... O-O {[%clk 0:02:36.5]} 15. Rfd1 {[%clk
0:02:37.9]} 15... Bd7 {[%clk 0:02:35.8]} 16. c3 {[%clk 0:02:33.5]} 16... Rfd8
{[%clk 0:02:25.7]} 17. cxd4 {[%clk 0:02:30.2]} 17... Nb4 {[%clk 0:02:15.2]} 18.
Be4 {[%clk 0:02:27.4]} 18... Qa5 {[%clk 0:02:07]} 19. Bxb7 {[%clk 0:02:26.9]}
19... Rab8 {[%clk 0:02:06.1]} 20. Be4 {[%clk 0:02:26]} 20... Bb5 {[%clk
0:02:00.2]} 21. Qd2 {[%clk 0:02:23.8]} 21... Qa3 {[%clk 0:01:57.3]} 22. Rdb1
{[%clk 0:02:10.7]} 22... Bc4 {[%clk 0:01:47.8]} 23. Qb2 {[%clk 0:02:06.5]} 23...
Qa5 {[%clk 0:01:34.1]} 24. a3 {[%clk 0:02:03.6]} 24... Nc6 {[%clk 0:01:33.4]}
25. Qc2 {[%clk 0:02:02]} 25... Qa6 {[%clk 0:01:20.9]} 26. Rxb8 {[%clk
0:01:52.2]} 26... Rxb8 {[%clk 0:01:13.2]} 27. Rc1 {[%clk 0:01:52.3]} 27... Na5
{[%clk 0:01:13.8]} 28. Nd2 {[%clk 0:01:45.6]} 28... Bb5 {[%clk 0:00:50.3]} 29.
d5 {[%clk 0:01:42.5]} 29... exd5 {[%clk 0:00:47.7]} 30. Bxd5 {[%clk 0:01:43]}
30... Rd8 {[%clk 0:00:49.2]} 31. Qe4 {[%clk 0:01:29.8]} 31... Bd3 {[%clk
0:00:46.3]} 32. Qf3 {[%clk 0:01:27.4]} 32... Bg6 {[%clk 0:00:45.1]} 33. Ne4
{[%clk 0:01:23.8]} 33... Rxd5 {[%clk 0:00:43.8]} 34. Nf6+ {[%clk 0:01:23.6]}
34... gxf6 {[%clk 0:00:44.9]} 35. Qxd5 {[%clk 0:01:20.7]} 35... fxe5 {[%clk
0:00:45.7]} 36. Qd8+ {[%clk 0:01:14.2]} 36... Kg7 {[%clk 0:00:42.3]} 37. Rc8
{[%clk 0:01:15.6]} 37... Bh7 {[%clk 0:00:30.6]} 38. Qh8+ {[%clk 0:01:02.2]}
38... Kg6 {[%clk 0:00:31.2]} 39. Rc3 {[%clk 0:00:55.6]} 39... Qd6 {[%clk
0:00:27.7]} 40. Rg3+ {[%clk 0:00:49.6]} 40... Kh5 {[%clk 0:00:28.9]} 41. h3
{[%clk 0:00:49]} 41... Bg6 {[%clk 0:00:30.3]} 42. Rf3 {[%clk 0:00:45.1]} 42...
e4 {[%clk 0:00:28.3]} 43. g4+ {[%clk 0:00:37.3]} 43... Kg5 {[%clk 0:00:27.3]}
44. Rg3 {[%clk 0:00:32.8]} 44... Nc4 {[%clk 0:00:22.2]} 45. h4+ {[%clk
0:00:32.7]} 45... Kf4 {[%clk 0:00:23.4]} 46. Qxh6+ {[%clk 0:00:32.1]} 46... Ke5
{[%clk 0:00:24.2]} 47. h5 {[%clk 0:00:29.7]} 47... Qd1+ {[%clk 0:00:23.6]} 48.
Kg2 {[%clk 0:00:26.9]} 48... Nd2 {[%clk 0:00:22.5]} 49. Qh8+ {[%clk 0:00:23]}
49... Ke6 {[%clk 0:00:21.4]} 50. Qc8+ {[%clk 0:00:19.6]} 50... Kd6 {[%clk
0:00:21.5]} 51. Qa6+ {[%clk 0:00:18.3]} 51... Ke7 {[%clk 0:00:22]} 52. hxg6
{[%clk 0:00:18.9]} 52... Nf3 {[%clk 0:00:19.3]} 53. Qxa7+ {[%clk 0:00:16.8]}
53... Kd6 {[%clk 0:00:18.1]} 54. Qb6+ {[%clk 0:00:16.5]} 54... Kd7 {[%clk
0:00:18.9]} 55. Qb7+ {[%clk 0:00:17.7]} 55... Kd6 {[%clk 0:00:20]} 56. Qb6+
{[%clk 0:00:12.4]} 56... Kd7 {[%clk 0:00:20.7]} 57. Qb7+ {[%clk 0:00:13.7]}
57... Kd6 {[%clk 0:00:20.9]} 58. Qxe4 {[%clk 0:00:15.3]} 58... Nh4+ {[%clk
0:00:20]} 59. Kh3 {[%clk 0:00:15.2]} 59... Qf1+ {[%clk 0:00:20.8]} 60. Kxh4
{[%clk 0:00:16.5]} 1-0

[Event "*** Titled Tuesday 3|2 Blitz"]
[Site "Chess.com"]
[Date "2017.03.07"]
[Round "5"]
[White "FlameOak4464"]
[Black "Marreuh"]
[Result "0-1"]
[WhiteElo "1770"]
[BlackElo "2083"]
[TimeControl "180+2"]
[EndTime "14:11:05 PST"]
[Termination "Marreuh won on time"]

1. e4 {[%clk 0:03:02]} 1... c5 {[%clk 0:02:59.4]} 2. Nf3 {[%clk 0:03:01.8]} 2...
d6 {[%clk 0:02:59.4]} 3. d4 {[%clk 0:03:02.4]} 3... cxd4 {[%clk 0:03:01.3]} 4.
Nxd4 {[%clk 0:03:02.9]} 4... Nf6 {[%clk 0:03:02.7]} 5. Nc3 {[%clk 0:03:03.8]}
5... a6 {[%clk 0:03:04.1]} 6. f3 {[%clk 0:03:03.8]} 6... Qb6 {[%clk 0:02:52.7]}
7. Bc4 {[%clk 0:02:39.3]} 7... e5 {[%clk 0:02:22.2]} 8. Nb3 {[%clk 0:02:28.6]}
8... Be6 {[%clk 0:02:21.8]} 9. Nd5 {[%clk 0:02:21.2]} 9... Bxd5 {[%clk
0:02:08.1]} 10. Bxd5 {[%clk 0:02:21.2]} 10... Nxd5 {[%clk 0:01:59.7]} 11. Qxd5
{[%clk 0:02:21.9]} 11... Nd7 {[%clk 0:02:01.1]} 12. Bg5 {[%clk 0:02:21.1]} 12...
h6 {[%clk 0:01:55.2]} 13. Bh4 {[%clk 0:02:19.5]} 13... Qe3+ {[%clk 0:01:50.4]}
14. Kd1 {[%clk 0:02:13.3]} 14... Be7 {[%clk 0:01:25.2]} 15. Re1 {[%clk
0:01:59.6]} 15... Qb6 {[%clk 0:01:21.5]} 16. Bxe7 {[%clk 0:01:54.2]} 16... Kxe7
{[%clk 0:01:22.6]} 17. Kd2 {[%clk 0:01:52]} 17... Rac8 {[%clk 0:01:22.8]} 18.
Rad1 {[%clk 0:01:46.5]} 18... Nc5 {[%clk 0:01:23.2]} 19. Kc1 {[%clk 0:01:41.9]}
19... Rhd8 {[%clk 0:01:18.6]} 20. Re3 {[%clk 0:01:33.4]} 20... Ne6 {[%clk
0:01:11.4]} 21. Ree1 {[%clk 0:01:19.3]} 21... Nf4 {[%clk 0:01:02]} 22. Qd2
{[%clk 0:01:18.8]} 22... Rc4 {[%clk 0:00:50.1]} 23. g3 {[%clk 0:01:16.5]} 23...
Ne6 {[%clk 0:00:50.8]} 24. Kb1 {[%clk 0:00:42.1]} 24... Nd4 {[%clk 0:00:47]} 25.
Nxd4 {[%clk 0:00:34.9]} 25... Rxd4 {[%clk 0:00:48.9]} 26. Qe2 {[%clk 0:00:23.1]}
26... f6 {[%clk 0:00:41.7]} 27. Rxd4 {[%clk 0:00:20.9]} 27... Qxd4 {[%clk
0:00:43.6]} 28. Rd1 {[%clk 0:00:22.1]} 28... Qb6 {[%clk 0:00:44.7]} 29. f4
{[%clk 0:00:23.1]} 29... Rc8 {[%clk 0:00:38.9]} 30. Qg4 {[%clk 0:00:18.5]} 30...
Rg8 {[%clk 0:00:36.9]} 31. fxe5 {[%clk 0:00:17.2]} 31... fxe5 {[%clk 0:00:33.9]}
32. Qh4+ {[%clk 0:00:18]} 32... Kd7 {[%clk 0:00:29.7]} 33. Qg4+ {[%clk
0:00:18.7]} 33... Kc7 {[%clk 0:00:29]} 34. Qe6 {[%clk 0:00:18.7]} 34... Rd8
{[%clk 0:00:26.4]} 35. Qf7+ {[%clk 0:00:18.5]} 35... Rd7 {[%clk 0:00:27.7]} 36.
Qc4+ {[%clk 0:00:20]} 36... Qc6 {[%clk 0:00:23.7]} 37. Qe2 {[%clk 0:00:19.3]}
37... Rf7 {[%clk 0:00:23.9]} 38. Re1 {[%clk 0:00:15.3]} 38... Qc5 {[%clk
0:00:22.7]} 39. Qg4 {[%clk 0:00:12.5]} 39... Kb8 {[%clk 0:00:16]} 40. a3 {[%clk
0:00:12.3]} 40... Rf2 {[%clk 0:00:16.8]} 41. Rc1 {[%clk 0:00:10.4]} 41... Rxh2
{[%clk 0:00:17.4]} 42. Qxg7 {[%clk 0:00:10.9]} 42... Ka7 {[%clk 0:00:17.5]} 43.
Qf8 {[%clk 0:00:10.4]} 43... Qd4 {[%clk 0:00:17.3]} 44. Qf5 {[%clk 0:00:09.8]}
44... Re2 {[%clk 0:00:17]} 45. g4 {[%clk 0:00:09.9]} 45... Rxe4 {[%clk
0:00:17.6]} 46. g5 {[%clk 0:00:09.6]} 46... hxg5 {[%clk 0:00:18.1]} 47. Qxg5
{[%clk 0:00:10.8]} 47... Rf4 {[%clk 0:00:16.8]} 48. Qd8 {[%clk 0:00:11.2]} 48...
e4 {[%clk 0:00:16.9]} 49. Re1 {[%clk 0:00:10.1]} 49... e3 {[%clk 0:00:17.7]} 50.
Qe7 {[%clk 0:00:10]} 50... Re4 {[%clk 0:00:18.9]} 51. Qd7 {[%clk 0:00:10.4]}
51... e2 {[%clk 0:00:20]} 52. Ka2 {[%clk 0:00:10.5]} 52... Qd2 {[%clk
0:00:17.9]} 53. Rg1 {[%clk 0:00:11]} 53... e1=Q {[%clk 0:00:18.1]} 54. Rxe1
{[%clk 0:00:11.8]} 54... Rxe1 {[%clk 0:00:17.6]} 55. Qg7 {[%clk 0:00:11.2]}
55... Qd5+ {[%clk 0:00:18.3]} 56. b3 {[%clk 0:00:11]} 56... Qe5 {[%clk
0:00:19.1]} 0-1